[Event "7th Iberoamerican-ch 2019"]
[Site "Linares"]
[Date "2019.08.10"]
[Round "1.6"]
[White "Esquivias Quintero, Luis Manuel"]
[Black "Salgado Lopez, Ivan"]
[Result "1/2-1/2"]
[ECO "B66"]
[WhiteElo "2275"]
[BlackElo "2596"]
[Annotator "ChessBase"]
[PlyCount "65"]
[EventDate "2019.08.10"]
[EventType "swiss"]
[EventCountry "ESP"]
[SourceTitle "playchess.com"]
[Source "ChessBase"]
[SourceQuality "1"]
[TimeControl "5400+30"]

1. e4 {[%emt 0:00:00]} c5 {[%emt 0:00:00]} 2. Nf3 {[%emt 0:00:00]} Nc6 {[%emt 0:00:06]} 3. d4 {[%emt 0:00:00]} cxd4 {[%emt 0:00:18]} 4. Nxd4 {[%emt 0:00:00]} Nf6 {[%emt 0:00:29]} 5. Nc3 {[%emt 0:00:00]} d6 {[%emt 0:00:08]} 6. Bg5 {[%emt 0:00:25]} e6 {[%emt 0:01:08]} 7. Qd2 {[%emt 0:00:37]} a6 {[%emt 0:00:34]} 8. O-O-O {[%emt 0:00:27]} Be7 {[%emt 0:00:09]} 9. f3 {[%emt 0:01:36]} Qc7 {[%emt 0:02:27]} 10. Kb1 {[%emt 0:07:10]} Nxd4 {[%emt 0:00:54]} 11. Qxd4 {[%emt 0:00:48]} b5 {[%emt 0:00:08]} 12. g4 {[%emt 0:09:35]} Bb7 {[%emt 0:01:24]} 13. a3 {[%emt 0:19:11]} Rc8 {[%emt 0:01:14]} 14. Qd2 {[%emt 0:24:56]} O-O {[%emt 0:06:14]} 15. Bd3 {[%emt 0:01:15]} Rfd8 {[%emt 0:00:36]} 16. h4 {[%emt 0:03:13]} d5 {[%emt 0:02:00]} 17. e5 {[%emt 0:03:00]} Ne4 {[%emt 0:02:06]} 18. fxe4 {[%emt 0:01:10]} dxe4 {[%emt 0:00:26]} 19. Bxe7 {[%emt 0:02:51]} Qxe7 {[%emt 0:01:15]} 20. Rh3 {[%emt 0:00:51]} exd3 {[%emt 0:14:52]} 21. Rxd3 {[%emt 0:00:20]} Rxd3 {[%emt 0:01:20]} 22. Qxd3 {[%emt 0:00:05]} Bc6 {[%emt 0:15:02]} 23. g5 {[%emt 0:04:31]} Rb8 {[%emt 0:05:01]} 24. Ne4 {[%emt 0:05:36]} Bxe4 {[%emt 0:08:53]} 25. Qxe4 {[%emt 0:00:03]} Rd8 {[%emt 0:00:32]} 26. Rd4 {[%emt 0:04:31]} Rxd4 {[%emt 0:05:27]} 27. Qxd4 {[%emt 0:00:02]} h6 {[%emt 0:00:41]} 28. gxh6 {[%emt 0:01:15]} gxh6 {[%emt 0:00:07]} 29. Qg4+ {[%emt 0:01:44]} Kh7 {[%emt 0:00:40]} 30. Qe4+ {[%emt 0:00:08]} Kg7 {[%emt 0:00:17]} 31. Qg4+ {[%emt 0:00:04]} Kh7 {[%emt 0:00:18]} 32. Qe4+ {[%emt 0:00:04]} Kg7 {[%emt 0:00:10]} 33. Qg4+ {[%emt 0:01:21]} 1/2-1/2

[Event "7th Iberoamerican-ch 2019"]
[Site "Linares"]
[Date "2019.08.10"]
[Round "1.7"]
[White "Lopez Martinez, Josep Manuel"]
[Black "Moral Garcia, Serafin"]
[Result "1-0"]
[ECO "E71"]
[WhiteElo "2581"]
[BlackElo "2283"]
[Annotator "ChessBase"]
[PlyCount "97"]
[EventDate "2019.08.10"]
[EventType "swiss"]
[EventCountry "ESP"]
[SourceTitle "playchess.com"]
[Source "ChessBase"]
[SourceQuality "1"]
[TimeControl "5400+30"]

1. d4 {[%emt 0:00:00]} Nf6 {[%emt 0:00:00]} 2. c4 {[%emt 0:00:00]} g6 {[%emt 0:00:15]} 3. Nc3 {[%emt 0:00:39]} Bg7 {[%emt 0:00:31]} 4. e4 {[%emt 0:01:03]} d6 {[%emt 0:00:35]} 5. h3 {[%emt 0:03:12]} O-O {[%emt 0:01:35]} 6. Be3 {[%emt 0:03:13]} e5 {[%emt 0:02:43]} 7. d5 {[%emt 0:00:56]} a5 {[%emt 0:03:19]} 8. g4 {[%emt 0:05:41]} Ne8 {[%emt 0:02:43]} 9. Nf3 {[%emt 0:06:02]} f5 {[%emt 0:05:15]} 10. gxf5 {[%emt 0:05:38]} gxf5 {[%emt 0:00:25]} 11. exf5 {[%emt 0:00:55]} Bxf5 {[%emt 0:01:43]} 12. Ng5 {[%emt 0:04:46]} Nf6 {[%emt 0:05:44]} 13. Rg1 {[%emt 0:07:18]} Qe7 {[%emt 0:04:25]} 14. Qf3 {[%emt 0:09:30]} Bg6 {[%emt 0:02:26]} 15. Ne6 {[%emt 0:05:19]} Rf7 {[%emt 0:00:33]} 16. Rxg6 {[%emt 0:05:00]} hxg6 {[%emt 0:00:12]} 17. Qg2 {[%emt 0:00:24]} Nbd7 {[%emt 0:03:54]} 18. Nxc7 {[%emt 0:07:06]} Rc8 {[%emt 0:00:26]} 19. Ne6 {[%emt 0:00:14]} Nc5 {[%emt 0:01:55]} 20. Bxc5 {[%emt 0:00:51]} dxc5 {[%emt 0:00:03]} 21. Qxg6 {[%emt 0:00:23]} e4 {[%emt 0:03:37]} 22. Be2 {[%emt 0:05:42]} Qd6 {[%emt 0:05:03]} 23. O-O-O {[%emt 0:04:48]} Re8 {[%emt 0:02:36]} 24. Bg4 {[%emt 0:05:43]} Nh7 {[%emt 0:05:10]} 25. Bf5 {[%emt 0:08:32]} Nf8 {[%emt 0:02:42]} 26. Qg4 {[%emt 0:03:24]} Qe5 {[%emt 0:03:25]} 27. Nxg7 {[%emt 0:02:58]} Qxg7 {[%emt 0:04:54]} 28. d6 {[%emt 0:00:15]} Qxg4 {[%emt 0:01:36]} 29. hxg4 {[%emt 0:00:07]} Kg7 {[%emt 0:01:09]} 30. d7 {[%emt 0:00:46]} Rd8 {[%emt 0:00:02]} 31. Nxe4 {[%emt 0:00:08]} b6 {[%emt 0:00:28]} 32. Rd6 {[%emt 0:00:51]} Nxd7 {[%emt 0:01:39]} 33. Ng5 {[%emt 0:00:18]} Rf6 {[%emt 0:00:07]} 34. Ne6+ {[%emt 0:00:42]} Kg8 {[%emt 0:00:02]} 35. Rd1 {[%emt 0:02:08]} Re8 {[%emt 0:00:17]} 36. Rxd7 {[%emt 0:00:41]} Rexe6 {[%emt 0:00:01]} 37. Bxe6+ Rxe6 38. Rd5 {[%emt 0:02:00]} Re4 {[%emt 0:00:27]} 39. Rg5+ {[%emt 0:00:20]} Kf7 {[%emt 0:00:16]} 40. b3 {[%emt 0:00:21]} Re2 {[%emt 0:01:26]} 41. Rf5+ {[%emt 0:00:07]} Ke6 {[%emt 0:00:06]} 42. a4 {[%emt 0:00:14]} Re4 {[%emt 0:01:54]} 43. f4 {[%emt 0:00:59]} Rd4 {[%emt 0:00:08]} 44. Kc2 {[%emt 0:00:19]} Rd8 {[%emt 0:00:54]} 45. Re5+ {[%emt 0:00:11]} Kf6 {[%emt 0:00:08]} 46. g5+ {[%emt 0:00:23]} Kg6 {[%emt 0:00:07]} 47. Re6+ {[%emt 0:00:49]} Kf5 {[%emt 0:00:01]} 48. Rxb6 {[%emt 0:00:32]} Kxf4 {[%emt 0:00:01]} 49. Rc6 1-0

[Event "7th Iberoamerican-ch 2019"]
[Site "Linares"]
[Date "2019.08.10"]
[Round "1.8"]
[White "Forgas Moreno, Yaniela"]
[Black "Vazquez Igarza, Renier"]
[Result "1/2-1/2"]
[ECO "B23"]
[WhiteElo "2272"]
[BlackElo "2558"]
[Annotator "ChessBase"]
[PlyCount "111"]
[EventDate "2019.08.10"]
[EventType "swiss"]
[EventCountry "ESP"]
[SourceTitle "playchess.com"]
[Source "ChessBase"]
[SourceQuality "1"]
[TimeControl "5400+30"]

1. e4 {[%emt 0:00:00]} c5 {[%emt 0:01:15]} 2. Nc3 {[%emt 0:00:00]} e6 {[%emt 0:01:38]} 3. g3 {[%emt 0:00:37]} d5 {[%emt 0:00:34]} 4. Bg2 {[%emt 0:02:41]} Nf6 {[%emt 0:04:20]} 5. e5 {[%emt 0:03:00]} Ng8 {[%emt 0:02:40]} 6. d3 {[%emt 0:02:34]} Nc6 {[%emt 0:00:15]} 7. f4 {[%emt 0:00:32]} Nh6 {[%emt 0:00:24]} 8. Nf3 {[%emt 0:01:02]} Nf5 {[%emt 0:00:08]} 9. Ne2 {[%emt 0:04:13]} h5 {[%emt 0:00:13]} 10. h3 {[%emt 0:02:27]} Bd7 {[%emt 0:07:16]} 11. O-O {[%emt 0:09:59]} Ncd4 {[%emt 0:02:54]} 12. Kh2 {[%emt 0:13:06]} h4 {[%emt 0:07:20]} 13. Nfxd4 {[%emt 0:04:14]} hxg3+ {[%emt 0:00:53]} 14. Nxg3 {[%emt 0:00:20]} Nxg3 {[%emt 0:00:34]} 15. Kxg3 {[%emt 0:00:13]} cxd4 {[%emt 0:00:08]} 16. Kh2 {[%emt 0:04:38]} Rc8 {[%emt 0:00:11]} 17. Bd2 {[%emt 0:00:33]} Qb6 {[%emt 0:02:53]} 18. Rb1 {[%emt 0:03:06]} Be7 {[%emt 0:07:08]} 19. Be1 {[%emt 0:06:41]} Qc7 {[%emt 0:05:30]} 20. Rc1 {[%emt 0:01:48]} Qb6 {[%emt 0:01:05]} 21. Rb1 {[%emt 0:02:58]} Ba4 {[%emt 0:09:58]} 22. b3 {[%emt 0:02:35]} Bd7 {[%emt 0:00:06]} 23. Bf2 {[%emt 0:01:35]} Qb4 {[%emt 0:00:59]} 24. Bg1 {[%emt 0:11:15]} Qc3 {[%emt 0:03:19]} 25. Rf2 {[%emt 0:01:39]} g6 {[%emt 0:04:50]} 26. Re2 {[%emt 0:06:04]} b5 {[%emt 0:01:23]} 27. Qf1 {[%emt 0:00:53]} Bd8 {[%emt 0:03:48]} 28. Qf2 {[%emt 0:01:56]} Bb6 {[%emt 0:00:27]} 29. a3 {[%emt 0:03:31]} Qc5 {[%emt 0:04:45]} 30. Ra1 {[%emt 0:01:22]} Qe7 {[%emt 0:01:29]} 31. Qe1 {[%emt 0:01:39]} Qh4 {[%emt 0:00:40]} 32. Qd2 {[%emt 0:01:14]} Qg4 {[%emt 0:03:37]} 33. Rf1 {[%emt 0:01:37]} Ba5 {[%emt 0:03:27]} 34. Qd1 {[%emt 0:01:11]} Bc3 {[%emt 0:00:53]} 35. Rf3 {[%emt 0:00:31]} Qh4 {[%emt 0:01:40]} 36. Bf2 {[%emt 0:02:13]} Qe7 {[%emt 0:00:02]} 37. Qg1 {[%emt 0:00:57]} Qc5 {[%emt 0:02:30]} 38. Rg3 {[%emt 0:00:48]} a5 {[%emt 0:00:28]} 39. Qc1 {[%emt 0:01:07]} Qe7 {[%emt 0:01:34]} 40. Rg4 {[%emt 0:01:23]} Kf8 {[%emt 0:03:37]} 41. Bf3 {[%emt 0:00:34]} Kg7 {[%emt 0:00:15]} 42. Qg1 {[%emt 0:01:20]} Qxa3 {[%emt 0:00:59]} 43. Rg5 {[%emt 0:00:49]} Kf8 {[%emt 0:01:01]} 44. f5 {[%emt 0:00:26]} gxf5 {[%emt 0:03:06]} 45. Bh4 {[%emt 0:00:19]} Ke8 {[%emt 0:06:57]} 46. Rg8+ {[%emt 0:00:42]} Rxg8 {[%emt 0:00:08]} 47. Qxg8+ {[%emt 0:00:04]} Qf8 {[%emt 0:00:05]} 48. Qh7 {[%emt 0:00:11]} Bb4 {[%emt 0:02:56]} 49. Bf6 {[%emt 0:00:37]} a4 {[%emt 0:01:11]} 50. Rg2 {[%emt 0:00:29]} a3 {[%emt 0:00:07]} 51. Rg8 {[%emt 0:00:30]} Rxc2+ {[%emt 0:00:01]} 52. Kg3 {[%emt 0:00:49]} Be1+ {[%emt 0:01:21]} 53. Kf4 {[%emt 0:00:16]} Bd2+ {[%emt 0:00:02]} 54. Kg3 {[%emt 0:00:09]} Be1+ {[%emt 0:00:06]} 55. Kf4 {[%emt 0:00:05]} Bd2+ {[%emt 0:00:13]} 56. Kg3 {[%emt 0:00:09]} 1/2-1/2

[Event "7th Iberoamerican-ch 2019"]
[Site "Linares"]
[Date "2019.08.10"]
[Round "1.9"]
[White "Albornoz Cabrera, Carlos Daniel"]
[Black "Lacayo, Rene"]
[Result "1-0"]
[ECO "C92"]
[WhiteElo "2566"]
[BlackElo "2240"]
[Annotator "ChessBase"]
[PlyCount "99"]
[EventDate "2019.08.10"]
[EventType "swiss"]
[EventCountry "ESP"]
[SourceTitle "playchess.com"]
[Source "ChessBase"]
[SourceQuality "1"]
[TimeControl "5400+30"]

1. e4 {[%emt 0:00:00]} e5 {[%emt 0:04:12]} 2. Nf3 {[%emt 0:00:00]} Nc6 {[%emt 0:00:05]} 3. Bb5 {[%emt 0:00:00]} a6 {[%emt 0:00:07]} 4. Ba4 {[%emt 0:00:03]} Nf6 {[%emt 0:00:08]} 5. O-O {[%emt 0:00:06]} Be7 {[%emt 0:00:07]} 6. Re1 {[%emt 0:00:05]} b5 {[%emt 0:00:16]} 7. Bb3 {[%emt 0:00:05]} d6 {[%emt 0:00:18]} 8. c3 {[%emt 0:00:08]} O-O {[%emt 0:00:08]} 9. h3 {[%emt 0:00:04]} Bb7 {[%emt 0:00:48]} 10. d4 {[%emt 0:00:14]} Re8 {[%emt 0:00:40]} 11. Nbd2 {[%emt 0:00:11]} Bf8 {[%emt 0:00:23]} 12. a3 {[%emt 0:00:22]} h6 {[%emt 0:03:35]} 13. Bc2 {[%emt 0:00:15]} g6 {[%emt 0:04:57]} 14. b3 {[%emt 0:00:07]} Bg7 {[%emt 0:02:53]} 15. Bb2 {[%emt 0:00:18]} Nh5 {[%emt 0:03:42]} 16. Bd3 {[%emt 0:00:43]} Nf4 {[%emt 0:14:49]} 17. Bf1 {[%emt 0:00:28]} Nb8 {[%emt 0:04:41]} 18. g3 {[%emt 0:07:45]} Nh5 {[%emt 0:00:19]} 19. dxe5 {[%emt 0:02:33]} dxe5 {[%emt 0:01:11]} 20. c4 {[%emt 0:00:23]} bxc4 {[%emt 0:19:29]} 21. Nxc4 {[%emt 0:01:03]} Nc6 {[%emt 0:00:12]} 22. b4 {[%emt 0:09:25]} Qf6 {[%emt 0:13:37]} 23. Ne3 {[%emt 0:03:21]} Nd4 {[%emt 0:04:57]} 24. Nxd4 {[%emt 0:02:49]} exd4 {[%emt 0:00:07]} 25. Ng4 {[%emt 0:03:14]} Qb6 {[%emt 0:04:56]} 26. Qd2 {[%emt 0:10:40]} Kh7 {[%emt 0:05:37]} 27. Bg2 {[%emt 0:03:16]} a5 {[%emt 0:00:50]} 28. Rac1 {[%emt 0:05:50]} Re7 {[%emt 0:00:59]} 29. e5 {[%emt 0:07:00]} Bxg2 {[%emt 0:00:23]} 30. Kxg2 {[%emt 0:00:03]} axb4 {[%emt 0:01:53]} 31. axb4 {[%emt 0:00:11]} Rd7 {[%emt 0:01:44]} 32. Rc4 {[%emt 0:02:18]} Ra4 {[%emt 0:03:08]} 33. Kh2 {[%emt 0:04:18]} Qb5 {[%emt 0:01:08]} 34. Rec1 {[%emt 0:03:12]} c5 {[%emt 0:00:45]} 35. R1c2 {[%emt 0:03:27]} Rxb4 {[%emt 0:00:27]} 36. Rxc5 {[%emt 0:00:13]} Qb7 {[%emt 0:00:23]} 37. R5c4 {[%emt 0:05:39]} Rxc4 {[%emt 0:00:53]} 38. Rxc4 {[%emt 0:00:06]} f5 {[%emt 0:01:45]} 39. Rxd4 {[%emt 0:02:53]} Rxd4 {[%emt 0:00:23]} 40. Qxd4 {[%emt 0:00:32]} fxg4 {[%emt 0:02:19]} 41. hxg4 {[%emt 0:00:01]} Qf3 {[%emt 0:00:37]} 42. gxh5 {[%emt 0:00:20]} Qxh5+ {[%emt 0:00:01]} 43. Kg2 {[%emt 0:00:15]} Qf5 {[%emt 0:00:03]} 44. Qd5 {[%emt 0:01:22]} h5 {[%emt 0:00:07]} 45. Qf3 {[%emt 0:04:57]} Qc2 {[%emt 0:01:26]} 46. e6 {[%emt 0:04:28]} Qc7 {[%emt 0:00:43]} 47. Ba3 {[%emt 0:01:39]} Qc8 {[%emt 0:00:46]} 48. e7 {[%emt 0:01:22]} Qe8 {[%emt 0:00:31]} 49. Qf8 {[%emt 0:00:45]} Qc6+ {[%emt 0:00:27]} 50. Kg1 {[%emt 0:00:17]} 1-0

[Event "7th Iberoamerican-ch 2019"]
[Site "Linares"]
[Date "2019.08.10"]
[Round "1.10"]
[White "Almagro Mazariegos, Sebastian"]
[Black "Henriquez Villagra, Cristobal"]
[Result "0-1"]
[ECO "B56"]
[WhiteElo "2268"]
[BlackElo "2560"]
[Annotator "ChessBase"]
[PlyCount "96"]
[EventDate "2019.08.10"]
[EventType "swiss"]
[EventCountry "ESP"]
[SourceTitle "playchess.com"]
[Source "ChessBase"]
[SourceQuality "1"]
[TimeControl "5400+30"]

1. e4 {[%emt 0:00:00]} c5 {[%emt 0:00:00]} 2. Nf3 {[%emt 0:00:12]} d6 {[%emt 0:00:00]} 3. d4 {[%emt 0:00:08]} cxd4 {[%emt 0:00:00]} 4. Nxd4 {[%emt 0:00:06]} Nf6 {[%emt 0:00:03]} 5. Nc3 {[%emt 0:00:14]} Nc6 {[%emt 0:00:05]} 6. f3 {[%emt 0:02:58]} e5 {[%emt 0:00:30]} 7. Nb3 {[%emt 0:00:40]} Be7 {[%emt 0:00:16]} 8. Be3 {[%emt 0:00:31]} Be6 {[%emt 0:01:02]} 9. Qd2 {[%emt 0:01:26]} d5 {[%emt 0:11:45]} 10. exd5 {[%emt 0:02:12]} Nxd5 {[%emt 0:00:09]} 11. Nxd5 {[%emt 0:00:07]} Qxd5 {[%emt 0:00:34]} 12. Qxd5 {[%emt 0:02:27]} Bxd5 {[%emt 0:00:02]} 13. O-O-O {[%emt 0:02:11]} O-O-O {[%emt 0:02:58]} 14. Bd3 {[%emt 0:06:42]} Kc7 {[%emt 0:10:50]} 15. Be4 {[%emt 0:05:27]} Bxe4 {[%emt 0:03:54]} 16. fxe4 {[%emt 0:00:19]} b6 {[%emt 0:03:09]} 17. Rxd8 {[%emt 0:04:50]} Rxd8 {[%emt 0:05:09]} 18. Rf1 {[%emt 0:04:24]} Rf8 {[%emt 0:01:57]} 19. Nd2 {[%emt 0:15:40]} Kd7 {[%emt 0:03:55]} 20. c3 {[%emt 0:05:46]} h5 {[%emt 0:08:10]} 21. h3 {[%emt 0:07:24]} Ke6 {[%emt 0:03:49]} 22. Kd1 {[%emt 0:06:31]} g6 {[%emt 0:06:14]} 23. g4 {[%emt 0:00:28]} hxg4 {[%emt 0:01:18]} 24. hxg4 {[%emt 0:00:03]} Rh8 {[%emt 0:00:08]} 25. Nf3 {[%emt 0:04:04]} f6 {[%emt 0:00:36]} 26. Ke2 {[%emt 0:00:44]} Na5 {[%emt 0:01:19]} 27. Nd2 {[%emt 0:14:30]} Nb7 {[%emt 0:00:49]} 28. b4 {[%emt 0:00:53]} Nd6 {[%emt 0:06:35]} 29. a4 {[%emt 0:00:18]} f5 {[%emt 0:03:20]} 30. gxf5+ {[%emt 0:00:06]} gxf5 {[%emt 0:00:01]} 31. exf5+ {[%emt 0:00:09]} Nxf5 {[%emt 0:00:02]} 32. Bf2 {[%emt 0:00:19]} Rh3 {[%emt 0:04:51]} 33. Rc1 {[%emt 0:02:00]} Bg5 {[%emt 0:00:47]} 34. Rc2 {[%emt 0:00:36]} Bxd2 {[%emt 0:00:32]} 35. Kxd2 {[%emt 0:00:36]} e4 {[%emt 0:04:02]} 36. Kc1 {[%emt 0:01:45]} Rh1+ {[%emt 0:01:30]} 37. Kb2 {[%emt 0:01:14]} e3 {[%emt 0:00:14]} 38. Bxe3 {[%emt 0:01:13]} Nxe3 {[%emt 0:00:06]} 39. Re2 {[%emt 0:00:11]} Rh3 {[%emt 0:00:04]} 40. Kb3 {[%emt 0:00:26]} Kd6 {[%emt 0:00:34]} 41. Rf2 {[%emt 0:00:33]} Nd5 {[%emt 0:04:59]} 42. Rc2 {[%emt 0:00:31]} a5 {[%emt 0:05:47]} 43. bxa5 {[%emt 0:00:26]} bxa5 {[%emt 0:00:02]} 44. Rc1 {[%emt 0:00:20]} Kc5 {[%emt 0:00:07]} 45. Rc2 {[%emt 0:00:27]} Rh7 {[%emt 0:03:53]} 46. Re2 {[%emt 0:01:01]} Rb7+ {[%emt 0:01:31]} 47. Kc2 {[%emt 0:00:02]} Re7 {[%emt 0:00:05]} 48. Rh2 {[%emt 0:00:30]} Re3 {[%emt 0:00:04]} 0-1

[Event "7th Iberoamerican-ch 2019"]
[Site "Linares"]
[Date "2019.08.10"]
[Round "1.11"]
[White "Cruz, Cristhian"]
[Black "Balbuena Fuentes, Mario"]
[Result "1-0"]
[ECO "A00"]
[WhiteElo "2562"]
[BlackElo "2266"]
[Annotator "ChessBase"]
[PlyCount "57"]
[EventDate "2019.08.10"]
[EventType "swiss"]
[EventCountry "ESP"]
[SourceTitle "playchess.com"]
[Source "ChessBase"]
[SourceQuality "1"]
[TimeControl "5400+30"]

1. g3 {[%emt 0:00:00]} e5 {[%emt 0:00:00]} 2. c4 {[%emt 0:00:00]} Nc6 {[%emt 0:00:07]} 3. Bg2 {[%emt 0:00:00]} f5 {[%emt 0:00:19]} 4. Nc3 {[%emt 0:00:19]} Nf6 {[%emt 0:00:16]} 5. d3 {[%emt 0:00:29]} Bb4 {[%emt 0:00:25]} 6. Bd2 {[%emt 0:00:08]} O-O {[%emt 0:00:31]} 7. Rc1 {[%emt 0:01:15]} d6 {[%emt 0:02:10]} 8. Nf3 {[%emt 0:08:23]} Bxc3 {[%emt 0:04:33]} 9. Bxc3 {[%emt 0:00:09]} Qe8 {[%emt 0:00:38]} 10. b4 {[%emt 0:01:39]} Qh5 {[%emt 0:03:37]} 11. d4 {[%emt 0:05:05]} e4 {[%emt 0:18:00]} 12. d5 {[%emt 0:00:18]} Nxb4 {[%emt 0:02:17]} 13. Bxb4 {[%emt 0:00:58]} exf3 {[%emt 0:00:23]} 14. Bxf3 {[%emt 0:00:03]} Qh3 {[%emt 0:00:08]} 15. c5 {[%emt 0:03:17]} Ng4 {[%emt 0:11:43]} 16. cxd6 {[%emt 0:02:53]} Ne5 {[%emt 0:16:15]} 17. Qb3 {[%emt 0:08:32]} a5 {[%emt 0:17:14]} 18. Ba3 {[%emt 0:03:22]} a4 {[%emt 0:01:34]} 19. Qc3 {[%emt 0:08:21]} Re8 {[%emt 0:01:00]} 20. dxc7 {[%emt 0:13:10]} Nxf3+ {[%emt 0:08:05]} 21. Qxf3 {[%emt 0:00:03]} f4 {[%emt 0:00:10]} 22. e3 {[%emt 0:08:50]} fxe3 {[%emt 0:07:24]} 23. fxe3 {[%emt 0:00:29]} Bd7 {[%emt 0:01:42]} 24. Rf1 {[%emt 0:01:04]} h6 {[%emt 0:01:20]} 25. Kd2 {[%emt 0:02:59]} Rac8 {[%emt 0:01:01]} 26. Rf2 {[%emt 0:01:58]} Kh7 {[%emt 0:00:27]} 27. Rc4 {[%emt 0:03:27]} Bb5 {[%emt 0:00:53]} 28. Rg4 {[%emt 0:04:07]} Re5 {[%emt 0:00:58]} 29. Rxg7+ {[%emt 0:01:54]} 1-0

[Event "7th Iberoamerican-ch 2019"]
[Site "Linares"]
[Date "2019.08.10"]
[Round "1.12"]
[White "Aizpurua, Patrick"]
[Black "Fier, Alexandr"]
[Result "1-0"]
[ECO "A10"]
[WhiteElo "2243"]
[BlackElo "2547"]
[Annotator "ChessBase"]
[PlyCount "105"]
[EventDate "2019.08.10"]
[EventType "swiss"]
[EventCountry "ESP"]
[SourceTitle "playchess.com"]
[Source "ChessBase"]
[SourceQuality "1"]
[TimeControl "5400+30"]

1. c4 {[%emt 0:00:00]} b6 {[%emt 0:00:05]} 2. Nc3 {[%emt 0:00:52]} Bb7 {[%emt 0:00:07]} 3. e4 {[%emt 0:00:58]} e6 {[%emt 0:01:43]} 4. Nf3 {[%emt 0:02:45]} c5 {[%emt 0:00:51]} 5. Bd3 {[%emt 0:02:09]} a6 {[%emt 0:03:21]} 6. O-O {[%emt 0:01:11]} Qc7 {[%emt 0:00:04]} 7. Re1 {[%emt 0:01:48]} Nc6 {[%emt 0:03:40]} 8. Bf1 {[%emt 0:06:53]} Nf6 {[%emt 0:04:31]} 9. a3 {[%emt 0:15:49]} Bd6 {[%emt 0:02:52]} 10. b4 {[%emt 0:06:38]} Nd4 {[%emt 0:05:34]} 11. bxc5 {[%emt 0:05:39]} bxc5 {[%emt 0:00:07]} 12. g3 {[%emt 0:04:25]} h5 {[%emt 0:00:57]} 13. Bg2 {[%emt 0:00:51]} Nxf3+ {[%emt 0:02:02]} 14. Bxf3 {[%emt 0:00:06]} Be5 {[%emt 0:03:20]} 15. Bb2 {[%emt 0:00:54]} Kf8 {[%emt 0:01:39]} 16. Na4 {[%emt 0:01:20]} h4 {[%emt 0:01:01]} 17. Bxe5 {[%emt 0:03:53]} Qxe5 {[%emt 0:00:04]} 18. Qb3 {[%emt 0:04:36]} Bc6 {[%emt 0:00:58]} 19. Rab1 {[%emt 0:04:07]} Bxa4 {[%emt 0:02:21]} 20. Qxa4 {[%emt 0:00:14]} Ke7 {[%emt 0:00:06]} 21. Qa5 {[%emt 0:00:49]} hxg3 {[%emt 0:01:36]} 22. hxg3 {[%emt 0:00:10]} Rh3 {[%emt 0:00:39]} 23. Bg2 {[%emt 0:08:25]} Rh5 {[%emt 0:00:06]} 24. Bf3 {[%emt 0:02:03]} Rh3 {[%emt 0:01:18]} 25. Bg2 {[%emt 0:01:39]} Rh6 {[%emt 0:00:04]} 26. d4 {[%emt 0:01:58]} Qxd4 {[%emt 0:05:44]} 27. Rbd1 {[%emt 0:00:15]} Qe5 {[%emt 0:02:18]} 28. Rd5 {[%emt 0:04:52]} exd5 {[%emt 0:04:46]} 29. exd5 {[%emt 0:00:07]} Qxe1+ {[%emt 0:00:03]} 30. Qxe1+ {[%emt 0:00:06]} Kf8 {[%emt 0:00:02]} 31. d6 {[%emt 0:02:48]} Re8 {[%emt 0:05:49]} 32. Qa5 {[%emt 0:00:35]} Kg8 {[%emt 0:00:13]} 33. Bf3 {[%emt 0:01:11]} Re5 {[%emt 0:01:58]} 34. Qxa6 {[%emt 0:01:11]} Re1+ {[%emt 0:03:29]} 35. Kg2 {[%emt 0:00:10]} Rhh1 {[%emt 0:00:04]} 36. Be2 {[%emt 0:04:56]} g5 {[%emt 0:01:29]} 37. Qc8+ {[%emt 0:02:34]} Kg7 {[%emt 0:00:08]} 38. Qxc5 {[%emt 0:01:21]} Rhg1+ {[%emt 0:00:04]} 39. Kf3 {[%emt 0:00:07]} Kg6 {[%emt 0:04:37]} 40. Qe5 {[%emt 0:00:47]} g4+ {[%emt 0:03:23]} 41. Kf4 {[%emt 0:00:07]} Nh5+ {[%emt 0:02:32]} 42. Kxg4 {[%emt 0:00:12]} Ng7 {[%emt 0:00:02]} 43. Bd3+ {[%emt 0:00:58]} f5+ {[%emt 0:00:06]} 44. Bxf5+ {[%emt 0:00:04]} Kf7 {[%emt 0:00:02]} 45. Qf4 {[%emt 0:02:10]} Ne6 {[%emt 0:00:19]} 46. Qh6 {[%emt 0:00:40]} Nf8 {[%emt 0:00:15]} 47. Qh5+ {[%emt 0:01:35]} Kg7 {[%emt 0:00:07]} 48. Qg5+ {[%emt 0:00:12]} Kf7 {[%emt 0:00:03]} 49. a4 {[%emt 0:00:10]} Rgf1 {[%emt 0:01:25]} 50. f3 {[%emt 0:00:26]} Rf2 {[%emt 0:00:57]} 51. Be4 {[%emt 0:01:47]} Rxe4+ {[%emt 0:00:26]} 52. fxe4 {[%emt 0:00:04]} Rf6 {[%emt 0:00:03]} 53. Qd5+ {[%emt 0:01:11]} 1-0

[Event "7th Iberoamerican-ch 2019"]
[Site "Linares"]
[Date "2019.08.10"]
[Round "1.13"]
[White "Martinez Duany, Lelys Stanley"]
[Black "Calzetta Ruiz, Monica"]
[Result "1-0"]
[ECO "A35"]
[WhiteElo "2535"]
[BlackElo "2257"]
[Annotator "ChessBase"]
[PlyCount "83"]
[EventDate "2019.08.10"]
[EventType "swiss"]
[EventCountry "ESP"]
[SourceTitle "playchess.com"]
[Source "ChessBase"]
[SourceQuality "1"]
[TimeControl "5400+30"]

1. Nf3 {[%emt 0:00:00]} c5 {[%emt 0:00:00]} 2. c4 {[%emt 0:00:24]} Nc6 {[%emt 0:00:18]} 3. Nc3 {[%emt 0:00:29]} Nf6 {[%emt 0:00:53]} 4. e3 {[%emt 0:02:35]} g6 {[%emt 0:07:28]} 5. d4 {[%emt 0:00:07]} cxd4 6. exd4 {[%emt 0:00:14]} d5 {[%emt 0:00:40]} 7. cxd5 {[%emt 0:00:20]} Nxd5 {[%emt 0:00:07]} 8. Qb3 {[%emt 0:00:50]} Nxc3 {[%emt 0:00:42]} 9. Bc4 {[%emt 0:00:32]} Nd5 {[%emt 0:01:58]} 10. Bxd5 {[%emt 0:00:06]} e6 {[%emt 0:00:04]} 11. Bxc6+ {[%emt 0:00:13]} bxc6 {[%emt 0:00:05]} 12. O-O {[%emt 0:00:32]} Bg7 {[%emt 0:02:17]} 13. Bg5 {[%emt 0:02:37]} Qd6 {[%emt 0:05:24]} 14. Qe3 {[%emt 0:00:31]} O-O {[%emt 0:06:41]} 15. Bh6 {[%emt 0:00:06]} Bxh6 {[%emt 0:05:49]} 16. Qxh6 {[%emt 0:00:06]} f6 {[%emt 0:00:04]} 17. Rac1 {[%emt 0:00:45]} Rb8 {[%emt 0:01:15]} 18. b3 {[%emt 0:01:51]} a5 {[%emt 0:05:09]} 19. Qe3 {[%emt 0:04:53]} a4 {[%emt 0:07:19]} 20. bxa4 {[%emt 0:01:17]} Rb4 {[%emt 0:00:45]} 21. a5 {[%emt 0:01:16]} Ba6 {[%emt 0:11:52]} 22. Rfe1 {[%emt 0:01:28]} Bc4 {[%emt 0:00:06]} 23. Qa3 {[%emt 0:02:49]} Qb8 {[%emt 0:00:38]} 24. Nd2 {[%emt 0:00:51]} Bd5 {[%emt 0:00:56]} 25. Rb1 {[%emt 0:00:09]} Rxb1 {[%emt 0:10:45]} 26. Rxb1 {[%emt 0:00:06]} Qf4 {[%emt 0:00:04]} 27. Qe3 {[%emt 0:03:17]} Qc7 {[%emt 0:10:14]} 28. Rb6 {[%emt 0:03:44]} Bxa2 {[%emt 0:03:23]} 29. Ne4 {[%emt 0:04:39]} Bd5 {[%emt 0:04:49]} 30. h4 {[%emt 0:00:33]} Qa7 {[%emt 0:00:55]} 31. Nc5 {[%emt 0:06:13]} Qxa5 {[%emt 0:00:35]} 32. Rb7 {[%emt 0:00:50]} Rf7 {[%emt 0:04:27]} 33. Rb8+ {[%emt 0:00:34]} Rf8 {[%emt 0:05:47]} 34. Qf4 {[%emt 0:00:11]} Rxb8 {[%emt 0:04:39]} 35. Qxb8+ {[%emt 0:00:07]} Kg7 {[%emt 0:00:11]} 36. Kh2 {[%emt 0:00:13]} Qa3 {[%emt 0:00:59]} 37. Qd6 {[%emt 0:03:16]} Kh6 {[%emt 0:00:40]} 38. Qf8+ {[%emt 0:00:17]} Kh5 {[%emt 0:00:03]} 39. Qxf6 {[%emt 0:00:20]} Qc1 {[%emt 0:00:31]} 40. Nd3 {[%emt 0:01:01]} Qd2 {[%emt 0:00:11]} 41. Nf4+ {[%emt 0:00:12]} Kh6 {[%emt 0:00:07]} 42. Qf8# {[%emt 0:00:13]} 1-0